{"text_format":"1","workbook":"xlsx","n_sheets":14,"sheets":["画面上部のボタンに動作につきまして","機関名およびプログラム名称","様式３（１）-①","様式３（１）-②","様式３（１）-③","様式３（２）","様式３（３）","様式３（４）","様式３（５）","様式３（６）","様式３（７）","様式３（８）-①","様式３（８）-②","課程区分"],"not_rendered":{"charts":0,"images":132,"macros":1,"external_links":0,"defined_names":25,"comments":0,"pivot_tables":0},"unopened":[],"bounds":{"document_bytes":16777216,"sheet_cells":100000,"rows_first":2000,"rows_last":500,"rows_between":2000,"halvings":0,"cell_chars":16384,"cell_head_chars":4096},"cells_cut":0,"cells_raw":0,"read":"whole","date_system":"1900"}

{"sheet":"画面上部のボタンに動作につきまして","index":0,"n_rows":201,"n_cols":6,"rows_kept":201,"cut":false,"hidden":false,"merged":[]}
["画面上部のボタンの動作について"]
[]
[]
[]
[]
[]
[]
[]
[]
[]
[]
[]
[]
[null,"①",null,"「内容チェック」ボタン"]
[null,null,null,"現在画面に表示されているシートの入力内容のチェックを行います。"]
[]
[null,null,null,"入力項目のチェックを行い、エラーが発生している場合は、ダイアログボックスが表示され、　"]
[null,null,null,"「エラーメッセージ用列」欄にエラー内容が表示されます。"]
[]
[null,null,null,"また、合計が反映されない時には、「内容チェック」ボタンを押すと反映されます。"]
[]
[null,null,null,"（エラーメッセージの例）"]
[]
[]
[]
[]
[]
[]
[]
[]
[]
[]
[]
[]
[]
[]
[]
[]
[]
[null,null,null,"エラーがない場合は、エラー無しのダイアログボックス"]
[null,null,null,"が表示されます。"]
[]
[]
[]
[]
[]
[]
[null,"②",null,"「一時保存（上書き）」ボタン"]
[null,null,null,"現在開いているエクセルファイルの上書き保存を行います。"]
[null,null,null,"上書き保存が終了すると、保存完了の"]
[null,null,null,"ダイアログボックスが表示されます。"]
[]
[]
[]
[null,"③",null,"「ファイルを閉じる」ボタン"]
[null,null,null,"現在開いているエクセルファイルを閉じます。"]
[null,null,null,"入力や変更後に保存を行っていない場合は"]
[null,null,null,"保存確認のダイアログボックスが表示されます。"]
[null,null,null,null,"・「はい」をクリックすると、上書き保存しファイルを閉じます。"]
[null,null,null,null,"・「いいえ」をクリックすると、変更を保存せず、ファイルを"]
[null,null,null,null,null,"閉じます。（ファイルを開く前の状態に戻ります）"]
[null,null,null,null,"・「キャンセル」をクリックするとファイルを閉じることを"]
[null,null,null,null,null,"中止し、エクセルに戻ります。"]
[]
[null,"④",null,"「最終保存」ボタン"]
[null,null,null,"エクセル内のシートについて、各シートの入力内容のチェックを行います。"]
[null,null,null,"全ての入力内容にエラーがない場合は提出用ファイルとして、保存を行います。"]
[null,null,null,"提出用ファイルは「提出ファイル様式_様式３_作成日時.xlsx」のファイル名でデスクトップに保存されます。"]
[null,null,null,"提出の際は「令和２年度（２０２０年度）卓越大学院プログラム申請書類の作成・提出について」を"]
[null,null,null,"参照の上、ファイル名を「機関番号－機関名－枝番_03」に修正してください。"]
[null,null,null,"※各シートの作成が終わったら、提出前に必ずこのボタンを押して"]
[null,null,null,"   提出用ファイルを作成してください。"]
[null,null,null,"※調書（PDFファイル）を作成する際には必ず提出用ファイルを使用してください。"]
[]
[null,"⑤",null,"「大学ごとのページの削除」ボタン"]
[null,null,null,"削除を行いたい大学のページの大学名入力欄を選択状態にし、"]
[null,null,null,"このボタンをクリックすると当該大学ページを削除します。"]
[null,null,null,"１ページ目の大学のページを削除することはできません。"]
[]
[]
[]
[]
[]
[]
[]
[]
[]
[]
[]
[]
[]
[]
[]
[]
[null,"⑥",null,"「大学ごとのページの追加」ボタン"]
[null,null,null,"大学ごとにページを複製して作成する様式に使用します。"]
[null,null,null,"このボタンをクリックするとシートの最下部に新しく作成する大学用のページが"]
[null,null,null,"作成されます。"]
[]
[]
[]
[null,"⑦",null,"「行の削除（課程区分欄）」ボタン"]
[null,null,null,"削除を行いたい課程区分の行を選択状態にし、"]
[null,null,null,"このボタンをクリックすると当該課程区分を削除します。"]
[null,null,null,"各ページの先頭の課程区分の行を削除することはできません。"]
[]
[]
[]
[]
[]
[]
[]
[]
[]
[]
[]
[]
[]
[]
[]
[]
[]
[]
[]
[null,"⑧",null,"「行の追加（課程区分欄）」ボタン"]
[null,null,null,"課程区分欄の追加を行う時に使用します。"]
[null,null,null,"課程区分欄を選択状態にし、このボタンをクリックすると課程区分欄が一行追加されます。"]
[null,null,null,"選択した行の下の行に追加されます。"]
[]
[]
[]
[]
[]
[]
[]
[]
[]
[]
[]
[]
[]
[]
[]
[null,"⑨",null,"「行の削除（研究科・専攻名欄削除）」ボタン"]
[null,null,null,"削除を行いたい研究科・専攻名の行を選択状態にし、"]
[null,null,null,"このボタンをクリックすると当該研究科・専攻名を削除します。"]
[null,null,null,"研究科・専攻名の削除を行うと、右の課程区分の行も同時に削除されます。"]
[null,null,null,"各ページの先頭の研究科・専攻名の行を削除することはできません。"]
[]
[]
[]
[]
[]
[]
[]
[]
[]
[]
[]
[]
[]
[]
[]
[]
[null,"⑩",null,"「行の追加（研究科・専攻名欄追加）」ボタン"]
[null,null,null,"研究科・専攻名欄の追加を行う時に使用します。"]
[null,null,null,"研究科・専攻名欄を選択状態にし、このボタンをクリックすると研究科・専攻名欄が一行"]
[null,null,null,"追加されます。選択した行の下の行に追加されます。"]
[]
[]
[]
[]
[]
[]
[]
[]
[]
[]
[]
[]
[]
[]
[]
[]
[]
[null,"⑪",null,"「大学ごとに１ページに収まっているかチェック」ボタン"]
[null,null,null,"このボタンをクリックすると、入力欄の高さに収まっていない入力欄の行の高さを調整し、"]
[null,null,null,"入力されている文字が全て表示されるように調整を行った上で、"]
[null,null,null,"各大学ごとに１ページに収まっているかチェックを行います。"]
[null,null,null,"チェックの結果は、ダイアログで表示されます。"]
[]
[null,"⑫",null,"「入力欄の行高調整」ボタン"]
[null,null,null,"このボタンをクリックすると、入力欄の高さに収まっていない入力欄の行の高さを調整し、"]
[null,null,null,"入力されている文字が全て表示されるように調整を行います。"]
[null,null,null,"画面上に全て表示されていても印刷時に一部が見切れてしまうような場合にも、"]
[null,null,null,"このボタンを押して調整してください。"]
[]
[null,"⑬",null,"「選択欄のフォントサイズ変更」ボタン"]
[null,null,null,"フォントサイズを調整できるセルにおいては、セルを選択状態にし、このボタンをクリックすると"]
[null,null,null,"6pt～10.5ptの範囲内でフォントサイズを調整することができます。"]
[null,null,null,"（一部、調整不可の部分があります。）"]

{"sheet":"機関名およびプログラム名称","index":1,"n_rows":6,"n_cols":6,"rows_kept":6,"cut":false,"hidden":false,"merged":[]}
[null,null,null,null,null,"エラーメッセージ用列"]
[]
[null,"機関名、プログラム名称を入力してください"]
[null,"機関名"]
[null,"プログラム名称"]
[null,null,"※本欄の入力内容が各ページのフッターに自動転記されます。"]

{"sheet":"様式３（１）-①","index":2,"n_rows":25,"n_cols":54,"rows_kept":25,"cut":false,"hidden":false,"merged":[[22,1,22,12],[15,1,17,2],[18,1,18,10],[18,11,19,11],[18,12,19,12],[19,1,19,10],[15,28,17,28],[15,3,17,3],[15,12,17,12],[15,26,17,26],[15,27,17,27],[8,1,8,12],[10,2,10,12],[12,1,14,2],[12,3,14,3],[12,4,14,4],[12,5,14,5],[12,6,14,6],[12,7,14,7],[12,8,12,10],[12,11,14,11],[12,12,14,12],[13,8,14,8],[13,9,14,9],[13,10,14,10]]}
[null,null,null,null,null,null,null,null,null,null,null,null,null,null,null,null,"エラーメッセージ用列"]
[null,null,null,null,null,null,null,null,null,null,null,null,null,null,null,null,null,null,null,1,"登録大学数"]
[null,null,null,null,null,null,null,null,null,null,null,null,"様式３",null,null,null,null,null,null,"A99999991","フォーマット先頭"]
["令和２年度（２０２０年度）",null,null,null,null,null,null,null,null,null,null,null,null,null,null,null,null,null,null,"A99999992"]
["卓越大学院プログラム　教育研究実績・環境等に関する基礎データ",null,null,null,null,null,null,null,null,null,null,null,null,null,null,null,null,null,null,"A99999993"]
[null,null,null,null,null,null,null,null,null,null,null,null,null,null,null,null,null,null,null,"A99999994"]
[null,"（１）学位プログラムに関連する専攻の現状",null,null,null,null,null,null,null,null,null,null,null,null,null,null,null,null,null,"A01800001","ページ先頭"]
[null,"①関連専攻の入学定員等",null,null,null,null,null,null,null,null,null,null,null,null,null,null,null,null,null,"A01800002"]
[null,"　「プログラムの基本情報」（様式１）の「８．学生の所属する専攻等名」に記載した専攻等の各課程の過去３年間の入学定員等について記入してください。大学ごとにページを複製して作成してください。",null,null,null,null,null,null,null,null,null,null,null,null,null,null,null,null,null,"A01800003"]
[null,null,null,null,null,null,null,null,null,null,null,null,null,null,null,null,null,null,null,"A01800004"]
[null,"大学名：",null,null,null,null,null,null,null,null,null,null,null,null,null,null,null,null,null,"A01800005","大学名欄"]
[null,null,null,null,null,null,null,null,null,null,null,null,null,null,null,null,null,null,null,"A01800006"]
[null,"研究科・専攻名",null,"課程区分","年度","入学\n定員","志願\n者数","入学\n者数","入学者のうち",null,null,"修了\n者数","授与学位\n分野・名称",null,null,null,null,null,null,"A01800007"]
[null,null,null,null,null,null,null,null,"外国人","社会人","自大学の同一分野\n出身者",null,null,null,null,null,null,null,null,"A01800008"]
[null,null,null,null,null,null,null,null,null,null,null,null,null,null,null,null,null,null,null,"A01800009"]
[null,null,null,null,"H30",null,null,null,null,null,null,null,null,null,null,null,null,null,null,"A01500001","データ先頭"]
[null,null,null,null,"H29",null,null,null,null,null,null,null,null,null,null,null,null,null,null,"A01500002"]
[null,null,null,null,"H28",null,null,null,null,null,null,null,null,null,null,null,null,null,null,"A01500003"]
[null,"H30年度博士課程修了者（満期退学者を除く）の合計　",null,null,null,null,null,null,null,null,null,null,null,null,null,null,null,null,null,"A01720001","集計行"]
[null,"※（４）進路の現状「博士課程修了者（満期退学者を除く）」の「合計」と一致させてください。",null,null,null,null,null,null,null,null,null,null,null,null,null,null,null,null,null,"A01720002"]
[null,null,null,null,null,null,null,null,null,null,null,null,"※関連専攻が多く欄が不足する場合や課程区分の欄が余る場合は、適宜行を追加・削除してください。",null,null,null,null,null,null,"A01720003"]
[null,"備考",null,null,null,null,null,null,null,null,null,null,null,null,null,null,null,null,null,"A01899997"]
[null,null,null,null,null,null,null,null,null,null,null,null,null,null,null,null,null,null,null,"A01899998","ページ備考欄",null,null,null,null,null,null,null,null,null,null,null,null,null,null,null,null,null,null,null,null,null,null,null,null,null,null,null,null,null,null,null,null,{"$f":"B23","v":0}]
[null,null,null,null,null,null,null,null,null,null,null,null,null,null,null,null,null,null,null,"A01899999","ページ最後"]
[null,null,null,null,null,null,null,null,null,null,null,null,null,null,null,null,null,null,null,"A99999999","フォーマット最後"]

{"sheet":"様式３（１）-②","index":3,"n_rows":19,"n_cols":54,"rows_kept":19,"cut":false,"hidden":false,"merged":[[13,1,13,2],[16,1,16,5],[5,1,5,5],[8,2,8,5],[10,1,12,2],[10,3,12,3],[10,4,12,4],[10,5,12,5]]}
[null,null,null,null,null,null,null,null,null,"エラーメッセージ用列"]
[null,null,null,null,null,null,null,null,null,null,null,null,null,null,null,null,null,null,null,1,"登録大学数"]
[null,null,null,null,null,"様式３",null,null,null,null,null,null,null,null,null,null,null,null,null,"A999999991","フォーマット先頭"]
[null,null,null,null,null,null,null,null,null,null,null,null,null,null,null,null,null,null,null,"A999999992"]
[null,"②関連専攻の博士論文名等一覧",null,null,null,null,null,null,null,null,null,null,null,null,null,null,null,null,null,"A018000001","ページ先頭"]
[null,"「プログラムの基本情報」（様式１）の「８．学生の所属する専攻等名」に記載した専攻等のうち、主要区分に関わる専攻等において平成３０年度（２０１８年度）に博士学位を授与した学生の博士論文名、主（任）指導教員を記入してください。大学ごとにページを複製して作成してください。",null,null,null,null,null,null,null,null,null,null,null,null,null,null,null,null,null,"A018000002"]
[null,null,null,null,null,null,null,null,null,null,null,null,null,null,null,null,null,null,null,"A01800003"]
[null,null,null,null,null,null,null,null,null,null,null,null,null,null,null,null,null,null,null,"A01800004"]
[null,"大学名：",null,null,null,null,null,null,null,null,null,null,null,null,null,null,null,null,null,"A018000005","大学名欄"]
[null,null,null,null,null,null,null,null,null,null,null,null,null,null,null,null,null,null,null,"A01800006"]
[null,"研究科・専攻名",null,"番号","博士論文名","主（任）指導教員",null,null,null,null,null,null,null,null,null,null,null,null,null,"A018000007"]
[null,null,null,null,null,null,null,null,null,null,null,null,null,null,null,null,null,null,null,"A018000008"]
[null,null,null,null,null,null,null,null,null,null,null,null,null,null,null,null,null,null,null,"A018000009"]
[null,null,null,1,null,null,null,null,null,null,null,null,null,null,null,null,null,null,null,"A015000001","データ先頭"]
[null,null,null,null,null,"\n※関連専攻や論文数が多く欄が足りない場合は、適宜行を追加してください。\n",null,null,null,null,null,null,null,null,null,null,null,null,null,"A017200001","集計行"]
[null,"備考",null,null,null,null,null,null,null,null,null,null,null,null,null,null,null,null,null,"A018999997"]
[null,null,null,null,null,null,null,null,null,null,null,null,null,null,null,null,null,null,null,"A018999998","ページ備考欄",null,null,null,null,null,null,null,null,null,null,null,null,null,null,null,null,null,null,null,null,null,null,null,null,null,null,null,null,null,null,null,null,{"$f":"B17","v":0}]
[null,null,null,null,null,null,null,null,null,null,null,null,null,null,null,null,null,null,null,"A018999999","ページ最後"]
[null,null,null,null,null,null,null,null,null,null,null,null,null,null,null,null,null,null,null,"A999999999","フォーマット最後"]

{"sheet":"様式３（１）-③","index":4,"n_rows":20,"n_cols":54,"rows_kept":20,"cut":false,"hidden":false,"merged":[[17,1,17,13],[12,1,12,2],[13,1,13,3],[14,1,14,3],[5,1,5,13],[8,2,8,13],[10,1,11,2],[10,3,11,3],[10,4,10,5],[10,6,10,7],[10,8,10,9],[10,10,10,11],[10,12,10,13]]}
[null,null,null,null,null,null,null,null,null,null,null,null,null,null,null,null,null,"エラーメッセージ用列"]
[null,null,null,null,null,null,null,null,null,null,null,null,null,null,null,null,null,null,null,1,"登録大学数"]
[null,null,null,null,null,null,null,null,null,null,null,null,null,"様式３",null,null,null,null,null,"A99999991","フォーマット先頭"]
[null,null,null,null,null,null,null,null,null,null,null,null,null,null,null,null,null,null,null,"A99999992"]
[null,"③関連専攻の教員組織",null,null,null,null,null,null,null,null,null,null,null,null,null,null,null,null,null,"A01800001","ページ先頭"]
[null,"　「プログラムの基本情報」（様式１）の「８．学生の所属する専攻等名」に記載した専攻等の各課程の令和元年（２０１９年）5月1日現在の教員組織について記入してください。大学ごとにページを複製して作成してください。",null,null,null,null,null,null,null,null,null,null,null,null,null,null,null,null,null,"A01800002"]
[null,null,null,null,null,null,null,null,null,null,null,null,null,null,null,null,null,null,null,"A01800003"]
[null,null,null,null,null,null,null,null,null,null,null,null,null,null,null,null,null,null,null,"A01800004"]
[null,"大学名：",null,null,null,null,null,null,null,null,null,null,null,null,null,null,null,null,null,"A01800005","大学名欄"]
[null,null,null,null,null,null,null,null,null,null,null,null,null,null,null,null,null,null,null,"A01800006"]
[null,"研究科・専攻名",null,"課程区分","教授(名)",null,"准教授(名)",null,"講師(名)",null,"助教(名)",null,"合計(名)",null,null,null,null,null,null,"A01800007"]
[null,null,null,null,"専任","兼任","専任","兼任","専任","兼任","専任","兼任","専任","兼任",null,null,null,null,null,"A01800008"]
[null,null,null,null,null,null,null,null,null,null,null,null,null,null,null,null,null,null,null,"A01500001","データ先頭"]
[null,"上記のうち外国人教員",null,null,null,null,null,null,null,null,null,null,null,null,null,null,null,null,null,"A01500002"]
[null,"専任教員のうち他大学等を経験したことのある者",null,null,null,"-",null,"-",null,"-",null,"-",null,"-",null,null,null,null,null,"A01500003"]
[null,null,null,null,null,null,null,null,null,null,null,null,null,"※関連専攻が多く欄が足りない場合は、適宜行を追加してください。",null,null,null,null,null,"A01720001","集計行"]
[null,"備考",null,null,null,null,null,null,null,null,null,null,null,null,null,null,null,null,null,"A01899997"]
[null,null,null,null,null,null,null,null,null,null,null,null,null,null,null,null,null,null,null,"A01899998","ページ備考欄",null,null,null,null,null,null,null,null,null,null,null,null,null,null,null,null,null,null,null,null,null,null,null,null,null,null,null,null,null,null,null,null,{"$f":"B18","v":0}]
[null,null,null,null,null,null,null,null,null,null,null,null,null,null,null,null,null,null,null,"A01899999","ページ最後"]
[null,null,null,null,null,null,null,null,null,null,null,null,null,null,null,null,null,null,null,"A99999999","フォーマット最後"]

{"sheet":"様式３（２）","index":5,"n_rows":21,"n_cols":54,"rows_kept":21,"cut":false,"hidden":false,"merged":[[0,3,1,3],[6,1,6,12],[11,1,12,2],[11,3,12,3],[11,4,12,4],[11,5,12,5],[11,6,12,6],[11,7,12,7],[11,8,12,8],[11,11,12,11],[11,12,12,12],[9,2,9,12],[18,1,18,12],[11,9,12,9],[13,1,14,2],[13,3,14,3],[15,1,15,2],[15,6,15,12]]}
[null,null,null,null,null,null,null,null,null,null,null,null,null,null,null,null,"エラーメッセージ用列"]
[null,null,null,null,null,null,null,null,null,null,null,null,null,null,null,null,null,null,null,1,"登録大学数"]
[null,null,null,null,null,null,null,null,null,null,null,null,"様式３",null,null,null,null,null,null,"A99999991","フォーマット先頭"]
[null,null,null,null,null,null,null,null,null,null,null,null,null,null,null,null,null,null,null,"A99999992"]
[null,null,null,null,null,null,null,null,null,null,null,null,null,null,null,null,null,null,null,"A99999993"]
[null,"（２）経済的支援の現状",null,null,null,null,null,null,null,null,null,null,null,null,null,null,null,null,null,"A01800001","ページ先頭"]
[null,"　「プログラムの基本情報」（様式１）の「８．学生の所属する専攻等名」に記載した専攻等の各課程において、平成３０年度（２０１８年度）に給付型の経済的支援を受けた者の状況を記入してください。各欄にはそれぞれの人数を実数で記入してください。大学ごとにページを複製して作成してください。",null,null,null,null,null,null,null,null,null,null,null,null,null,null,null,null,null,"A01800002"]
[null,null,null,null,null,null,null,null,null,null,null,null,null,null,null,null,null,null,null,"A01800003"]
[null,null,null,null,null,null,null,null,null,null,null,null,null,null,null,null,null,null,null,"A01800004"]
[null,"大学名：",null,null,null,null,null,null,null,null,null,null,null,null,null,null,null,null,null,"A01800005","大学名欄"]
[null,null,null,null,null,null,null,null,null,null,null,null,null,null,null,null,null,null,null,"A01800006"]
[null,"研究科・専攻名",null,"課程区分",null,"在籍学生数","経済的支援を受ける者","ＴＡとして採用されている者","ＲＡとして採用されている者","フェロ\nーシッ\nプ・奨\n学金",null,"その他","授業料\n免除適\n用者数",null,null,null,null,null,null,"A01800007"]
[null,null,null,null,null,null,null,null,null,null,"うち\n日本学\n術振興\n会特別\n研究員\n採用者",null,null,null,null,null,null,null,null,"A01800008"]
[null,null,null,null,"合計",null,null,null,null,null,null,null,null,null,null,null,null,null,null,"A01500001","データ先頭"]
[null,null,null,null,"うち、外国人",null,null,null,null,null,null,null,null,null,null,null,null,null,null,"A01500002"]
[null,"課程区分ごとの在籍学生数\n合計\n※（5）学生の研究活動の状況①の在籍者数との整合性に注意してください。",null,null,"合計",null,null,null,null,null,null,null,null,null,null,null,null,null,null,"A01720001","集計行"]
[null,null,null,null,null,null,null,null,null,null,null,null,"※関連専攻が多く欄が不足する場合や課程区分の欄が余る場合は、適宜行を追加・削除してください。",null,null,null,null,null,null,"A01720999","集計行最後"]
[null,"備考",null,null,null,null,null,null,null,null,null,null,null,null,null,null,null,null,null,"A01899997"]
[null,null,null,null,null,null,null,null,null,null,null,null,null,null,null,null,null,null,null,"A01899998","ページ備考欄",null,null,null,null,null,null,null,null,null,null,null,null,null,null,null,null,null,null,null,null,null,null,null,null,null,null,null,null,null,null,null,null,{"$f":"B19","v":0}]
[null,null,null,null,null,null,null,null,null,null,null,null,null,null,null,null,null,null,null,"A01899999","ページ最後"]
[null,null,null,null,null,null,null,null,null,null,null,null,null,null,null,null,null,null,null,"A99999999","フォーマット最後"]

{"sheet":"様式３（３）","index":6,"n_rows":27,"n_cols":108,"rows_kept":27,"cut":false,"hidden":false,"merged":[[18,63,18,72],[15,1,15,72],[19,1,19,4],[19,5,19,25],[19,26,19,29],[19,32,19,33],[19,36,19,39],[19,40,19,62],[19,63,19,66],[19,69,19,70],[18,1,18,4],[18,5,18,25],[18,26,18,35],[18,36,18,39],[18,40,18,62],[17,1,17,35],[12,69,12,70],[12,43,12,46],[12,33,12,36],[12,39,12,40],[12,49,12,50],[12,53,12,56],[12,59,12,60],[17,36,17,72],[12,21,12,32],[4,1,4,73],[5,1,5,73],[8,1,8,7],[8,8,8,72],[10,1,11,20],[10,21,11,32],[10,33,10,52],[10,53,10,72],[11,33,11,42],[11,43,11,52],[11,53,11,62],[11,63,11,72],[12,1,12,20],[12,63,12,66],[20,40,20,62],[20,63,20,66],[20,69,20,70],[21,1,21,4],[21,5,21,25],[21,26,21,29],[21,32,21,33],[21,36,21,39],[21,40,21,62],[21,63,21,66],[21,69,21,70],[20,1,20,4],[20,5,20,25],[20,26,20,29],[20,32,20,33],[20,36,20,39],[22,40,22,62],[22,63,22,66],[22,69,22,70],[22,1,22,4],[22,5,22,25],[22,26,22,29],[22,32,22,33],[22,36,22,39],[23,40,23,62],[23,63,23,66],[23,69,23,70],[23,1,23,4],[23,5,23,25],[23,26,23,29],[23,32,23,33],[23,36,23,39]]}
[null,null,null,null,null,null,null,null,null,null,null,null,null,null,null,null,null,null,null,null,null,null,null,null,null,null,null,null,null,null,null,null,null,null,null,null,null,null,null,null,null,null,null,null,null,null,null,null,null,null,null,null,null,null,null,null,null,null,null,null,null,null,null,null,null,null,null,null,null,null,null,null,null,null,null,null,null,null,"エラーメッセージ用列"]
[null,null,null,null,null,null,null,null,null,null,null,null,null,null,null,null,null,null,null,null,null,null,null,null,null,null,null,null,null,null,null,null,null,null,null,null,null,null,null,null,null,null,null,null,null,null,null,null,null,null,null,null,null,null,null,null,null,null,null,null,null,null,null,null,null,null,null,null,null,null,null,null,null,null,null,null,null,null,null,null,null,null,null,1,"登録大学数"]
[1,null,null,null,null,null,null,null,null,null,null,null,null,null,null,null,null,null,null,null,null,null,null,null,null,null,null,null,null,null,null,null,null,null,null,null,null,null,null,null,null,null,null,null,null,null,null,null,null,null,null,null,null,null,null,null,null,null,null,null,null,null,null,null,null,null,null,null,null,null,null,null,null,"様式３",null,null,null,null,null,null,null,null,null,"A99999991","フォーマット先頭"]
[null,null,null,null,null,null,null,null,null,null,null,null,null,null,null,null,null,null,null,null,null,null,null,null,null,null,null,null,null,null,null,null,null,null,null,null,null,null,null,null,null,null,null,null,null,null,null,null,null,null,null,null,null,null,null,null,null,null,null,null,null,null,null,null,null,null,null,null,null,null,null,null,null,null,null,null,null,null,null,null,null,null,null,"A99999992"]
[null,"（３）留学生の受入、日本人学生の派遣実績",null,null,null,null,null,null,null,null,null,null,null,null,null,null,null,null,null,null,null,null,null,null,null,null,null,null,null,null,null,null,null,null,null,null,null,null,null,null,null,null,null,null,null,null,null,null,null,null,null,null,null,null,null,null,null,null,null,null,null,null,null,null,null,null,null,null,null,null,null,null,null,null,null,null,null,null,null,null,null,null,null,"A01800001","ページ先頭"]
[null,"　「プログラムの基本情報」（様式１）の「８．学生の所属する専攻等名」に記載した専攻等の各課程における平成2９年度（２０１７年度）、３０年度（２０１８年度）の留学生受入、日本人学生派遣の実績（括弧内は延べ回数）と、平成３０年度（２０１８年度）の受入・派遣先国・地域の上位５か国等の内訳を記入してください。大学ごとにページを複製して作成してください。",null,null,null,null,null,null,null,null,null,null,null,null,null,null,null,null,null,null,null,null,null,null,null,null,null,null,null,null,null,null,null,null,null,null,null,null,null,null,null,null,null,null,null,null,null,null,null,null,null,null,null,null,null,null,null,null,null,null,null,null,null,null,null,null,null,null,null,null,null,null,null,null,null,null,null,null,null,null,null,null,null,"A01800002"]
[null,null,null,null,null,null,null,null,null,null,null,null,null,null,null,null,null,null,null,null,null,null,null,null,null,null,null,null,null,null,null,null,null,null,null,null,null,null,null,null,null,null,null,null,null,null,null,null,null,null,null,null,null,null,null,null,null,null,null,null,null,null,null,null,null,null,null,null,null,null,null,null,null,null,null,null,null,null,null,null,null,null,null,"A01800003"]
[null,null,null,null,null,null,null,null,null,null,null,null,null,null,null,null,null,null,null,null,null,null,null,null,null,null,null,null,null,null,null,null,null,null,null,null,null,null,null,null,null,null,null,null,null,null,null,null,null,null,null,null,null,null,null,null,null,null,null,null,null,null,null,null,null,null,null,null,null,null,null,null,null,null,null,null,null,null,null,null,null,null,null,"A01800004"]
[null,"大学名：",null,null,null,null,null,null,null,null,null,null,null,null,null,null,null,null,null,null,null,null,null,null,null,null,null,null,null,null,null,null,null,null,null,null,null,null,null,null,null,null,null,null,null,null,null,null,null,null,null,null,null,null,null,null,null,null,null,null,null,null,null,null,null,null,null,null,null,null,null,null,null,null,null,null,null,null,null,null,null,null,null,"A01800005","大学名欄"]
[null,null,null,null,null,null,null,null,null,null,null,null,null,null,null,null,null,null,null,null,null,null,null,null,null,null,null,null,null,null,null,null,null,null,null,null,null,null,null,null,null,null,null,null,null,null,null,null,null,null,null,null,null,null,null,null,null,null,null,null,null,null,null,null,null,null,null,null,null,null,null,null,null,null,null,null,null,null,null,null,null,null,null,"A01800006"]
[null,"研究科・専攻名",null,null,null,null,null,null,null,null,null,null,null,null,null,null,null,null,null,null,null,"課程区分",null,null,null,null,null,null,null,null,null,null,null,"留学生受入人数",null,null,null,null,null,null,null,null,null,null,null,null,null,null,null,null,null,null,null,"日本人学生派遣人数",null,null,null,null,null,null,null,null,null,null,null,null,null,null,null,null,null,null,null,null,null,null,null,null,null,null,null,null,null,"A01800007"]
[null,null,null,null,null,null,null,null,null,null,null,null,null,null,null,null,null,null,null,null,null,null,null,null,null,null,null,null,null,null,null,null,null,"２９年度",null,null,null,null,null,null,null,null,null,"３０年度",null,null,null,null,null,null,null,null,null,"２９年度",null,null,null,null,null,null,null,null,null,"３０年度",null,null,null,null,null,null,null,null,null,null,null,null,null,null,null,null,null,null,null,"A01800008"]
[null,null,null,null,null,null,null,null,null,null,null,null,null,null,null,null,null,null,null,null,null,null,null,null,null,null,null,null,null,null,null,null,null,null,null,null,null,"（",null,null,null,"）",null,null,null,null,null,"（",null,null,null,"）",null,null,null,null,null,"（",null,null,null,"）",null,null,null,null,null,"（",null,null,null,"）",null,null,null,null,null,null,null,null,null,null,null,"A01500001","データ先頭"]
[null,null,null,null,null,null,null,null,null,null,null,null,null,null,null,null,null,null,null,null,null,null,null,null,null,null,null,null,null,null,null,null,null,null,null,null,null,null,null,null,null,null,null,null,null,null,null,null,null,null,null,null,null,null,null,null,null,null,null,null,null,null,null,null,null,null,null,null,null,null,null,null,null,"※関連専攻が多く欄が不足する場合や課程区分の欄が余る場合は、適宜行を追加・削除してください。",null,null,null,null,null,null,null,null,null,"A01599999","データ最後"]
[null,"備考",null,null,null,null,null,null,null,null,null,null,null,null,null,null,null,null,null,null,null,null,null,null,null,null,null,null,null,null,null,null,null,null,null,null,null,null,null,null,null,null,null,null,null,null,null,null,null,null,null,null,null,null,null,null,null,null,null,null,null,null,null,null,null,null,null,null,null,null,null,null,null,null,null,null,null,null,null,null,null,null,null,"A01899997"]
[null,null,null,null,null,null,null,null,null,null,null,null,null,null,null,null,null,null,null,null,null,null,null,null,null,null,null,null,null,null,null,null,null,null,null,null,null,null,null,null,null,null,null,null,null,null,null,null,null,null,null,null,null,null,null,null,null,null,null,null,null,null,null,null,null,null,null,null,null,null,null,null,null,null,null,null,null,null,null,null,null,null,null,"A01899998","ページ備考欄",null,null,null,null,null,null,null,null,null,null,null,null,null,null,null,null,null,null,null,null,null,null,{"$f":"B16","v":0}]
[null,null,null,null,null,null,null,null,null,null,null,null,null,null,null,null,null,null,null,null,null,null,null,null,null,null,null,null,null,null,null,null,null,null,null,null,null,null,null,null,null,null,null,null,null,null,null,null,null,null,null,null,null,null,null,null,null,null,null,null,null,null,null,null,null,null,null,null,null,null,null,null,null,null,null,null,null,null,null,null,null,null,null,"A01600001"]
[null,"留学生受入（３０年度）",null,null,null,null,null,null,null,null,null,null,null,null,null,null,null,null,null,null,null,null,null,null,null,null,null,null,null,null,null,null,null,null,null,null,"日本人学生派遣（３０年度）",null,null,null,null,null,null,null,null,null,null,null,null,null,null,null,null,null,null,null,null,null,null,null,null,null,null,null,null,null,null,null,null,null,null,null,null,null,null,null,null,null,null,null,null,null,null,"A01600002"]
[null,"順位",null,null,null,"受入先国・地域",null,null,null,null,null,null,null,null,null,null,null,null,null,null,null,null,null,null,null,null,"人数",null,null,null,null,null,null,null,null,null,"順位",null,null,null,"派遣先国・地域",null,null,null,null,null,null,null,null,null,null,null,null,null,null,null,null,null,null,null,null,null,null,"人数",null,null,null,null,null,null,null,null,null,null,null,null,null,null,null,null,null,null,null,"A01600003"]
[null,null,null,null,null,null,null,null,null,null,null,null,null,null,null,null,null,null,null,null,null,null,null,null,null,null,null,null,null,null,"（",null,null,null,"）",null,null,null,null,null,null,null,null,null,null,null,null,null,null,null,null,null,null,null,null,null,null,null,null,null,null,null,null,null,null,null,null,"（",null,null,null,"）",null,null,null,null,null,null,null,null,null,null,null,"A01720001","集計行"]
[null,null,null,null,null,null,null,null,null,null,null,null,null,null,null,null,null,null,null,null,null,null,null,null,null,null,null,null,null,null,"（",null,null,null,"）",null,null,null,null,null,null,null,null,null,null,null,null,null,null,null,null,null,null,null,null,null,null,null,null,null,null,null,null,null,null,null,null,"（",null,null,null,"）",null,null,null,null,null,null,null,null,null,null,null,"A01720002"]
[null,null,null,null,null,null,null,null,null,null,null,null,null,null,null,null,null,null,null,null,null,null,null,null,null,null,null,null,null,null,"（",null,null,null,"）",null,null,null,null,null,null,null,null,null,null,null,null,null,null,null,null,null,null,null,null,null,null,null,null,null,null,null,null,null,null,null,null,"（",null,null,null,"）",null,null,null,null,null,null,null,null,null,null,null,"A01720003"]
[null,null,null,null,null,null,null,null,null,null,null,null,null,null,null,null,null,null,null,null,null,null,null,null,null,null,null,null,null,null,"（",null,null,null,"）",null,null,null,null,null,null,null,null,null,null,null,null,null,null,null,null,null,null,null,null,null,null,null,null,null,null,null,null,null,null,null,null,"（",null,null,null,"）",null,null,null,null,null,null,null,null,null,null,null,"A01720004"]
[null,null,null,null,null,null,null,null,null,null,null,null,null,null,null,null,null,null,null,null,null,null,null,null,null,null,null,null,null,null,"（",null,null,null,"）",null,null,null,null,null,null,null,null,null,null,null,null,null,null,null,null,null,null,null,null,null,null,null,null,null,null,null,null,null,null,null,null,"（",null,null,null,"）",null,null,null,null,null,null,null,null,null,null,null,"A01720005"]
[null,null,null,null,null,null,null,null,null,null,null,null,null,null,null,null,null,null,null,null,null,null,null,null,null,null,null,null,null,null,null,null,null,null,null,null,null,null,null,null,null,null,null,null,null,null,null,null,null,null,null,null,null,null,null,null,null,null,null,null,null,null,null,null,null,null,null,null,null,null,null,null,null,null,null,null,null,null,null,null,null,null,null,"A01729999","集計行最後"]
[null,null,null,null,null,null,null,null,null,null,null,null,null,null,null,null,null,null,null,null,null,null,null,null,null,null,null,null,null,null,null,null,null,null,null,null,null,null,null,null,null,null,null,null,null,null,null,null,null,null,null,null,null,null,null,null,null,null,null,null,null,null,null,null,null,null,null,null,null,null,null,null,null,null,null,null,null,null,null,null,null,null,null,"A01899999","ページ最後"]
[null,null,null,null,null,null,null,null,null,null,null,null,null,null,null,null,null,null,null,null,null,null,null,null,null,null,null,null,null,null,null,null,null,null,null,null,null,null,null,null,null,null,null,null,null,null,null,null,null,null,null,null,null,null,null,null,null,null,null,null,null,null,null,null,null,null,null,null,null,null,null,null,null,null,null,null,null,null,null,null,null,null,null,"A99999999","フォーマット最後"]

{"sheet":"様式３（４）","index":7,"n_rows":50,"n_cols":54,"rows_kept":50,"cut":false,"hidden":false,"merged":[[26,2,26,4],[27,2,27,4],[34,1,34,8],[38,1,38,8],[42,1,42,8],[46,1,46,8],[28,2,28,4],[30,1,30,8],[5,1,5,8],[8,2,8,3],[8,4,8,8],[10,1,12,4],[10,5,10,6],[10,7,10,8],[11,6,12,6],[11,7,12,7],[11,8,12,8],[13,1,13,4],[14,2,14,4],[15,2,15,4],[16,1,24,2],[16,3,16,4],[17,3,17,4],[23,3,23,4],[24,3,24,4],[18,3,18,4],[19,3,19,4],[20,3,20,4],[21,3,21,4],[22,3,22,4]]}
[null,null,null,null,null,null,null,null,null,null,null,null,"エラーメッセージ用列"]
[null,null,null,null,null,null,null,null,null,null,null,null,null,null,null,null,null,null,null,1,"登録大学数"]
[null,null,null,null,null,null,null,null,"様式３",null,null,null,null,null,null,null,null,null,null,"A99999991","フォーマット先頭"]
[null,null,null,null,null,null,null,null,null,null,null,null,null,null,null,null,null,null,null,"A99999992"]
[null,"（４）進路の現状",null,null,null,null,null,null,null,null,null,null,null,null,null,null,null,null,null,"A01800001","ページ先頭"]
[null,"「プログラムの基本情報」（様式１）の「８．学生の所属する専攻等名」に記載した専攻等における平成３０年度（２０１８年度）修了者の進路状況（令和元年（２０１９年）5月1日現在）について、データを集計の上、記入してください。大学ごとにページを複製して作成してください。",null,null,null,null,null,null,null,null,null,null,null,null,null,null,null,null,null,"A01800002"]
[null,null,null,null,null,null,null,null,null,null,null,null,null,null,null,null,null,null,null,"A01800003"]
[null,null,null,null,null,null,null,null,null,null,null,null,null,null,null,null,null,null,null,"A01800004"]
[null,null,"大学名：　",null,null,null,null,null,null,null,null,null,null,null,null,null,null,null,null,"A01800005","大学名欄"]
[null,null,null,null,null,null,null,null,null,null,null,null,null,null,null,null,null,null,null,"A01800006"]
[null,"区　　分",null,null,null,"博士課程修了者（満期退学者を除く）",null,"博士課程満期退学者",null,null,null,null,null,null,null,null,null,null,null,"A01800007"]
[null,null,null,null,null,"合計","うち、外国人","合計","うち、外国人",null,null,null,null,null,null,null,null,null,null,"A01800008"]
[null,null,null,null,null,"\n※（１）①「H30年度博士課程修了者（満期退学者を除く）の合計」と一致させてください。\n",null,null,null,null,null,null,null,null,null,null,null,null,null,"A01800009"]
[null,"修了者数・満期退学者数",null,null,null,null,null,null,null,null,null,null,null,null,null,null,null,null,null,"A01410001","表先頭行"]
[null,null,"① 進学者数",null,null,null,null,null,null,null,null,null,null,null,null,null,null,null,null,"A01410002"]
[null,null,"② 就職者数",null,null,null,null,null,null,null,null,null,null,null,null,null,null,null,null,"A01410003"]
[null,"②の内訳",null,"大学の教員（助教・講師等）",null,null,null,null,null,null,null,null,null,null,null,null,null,null,null,"A01410004"]
[null,null,null,"公的な研究機関",null,null,null,null,null,null,null,null,null,null,null,null,null,null,null,"A01410005"]
[null,null,null,"その他公的機関",null,null,null,null,null,null,null,null,null,null,null,null,null,null,null,"A01410006"]
[null,null,null,"企業（研究開発部門）",null,null,null,null,null,null,null,null,null,null,null,null,null,null,null,"A01410007"]
[null,null,null,"企業（その他の職種）",null,null,null,null,null,null,null,null,null,null,null,null,null,null,null,"A01410008"]
[null,null,null,"ポスドク（同一大学）",null,null,null,null,null,null,null,null,null,null,null,null,null,null,null,"A01410009"]
[null,null,null,"ポスドク（他大学等）",null,null,null,null,null,null,null,null,null,null,null,null,null,null,null,"A01410010"]
[null,null,null,"学校の教員（大学を除く）",null,null,null,null,null,null,null,null,null,null,null,null,null,null,null,"A01410011"]
[null,null,null,"その他",null,null,null,null,null,null,null,null,null,null,null,null,null,null,null,"A01410012"]
[null,null,"③ 専修学校・外国の学校等入学者",null,null,null,null,null,null,null,null,null,null,null,null,null,null,null,null,"A01410013"]
[null,null,"④ 一時的な仕事に就いた者",null,null,null,null,null,null,null,null,null,null,null,null,null,null,null,null,"A01410014"]
[null,null,"⑤ 死亡・不詳",null,null,null,null,null,null,null,null,null,null,null,null,null,null,null,null,"A01410015"]
[null,null,"⑥ ①～⑤のいずれにも該当しない者",null,null,null,null,null,null,null,null,null,null,null,null,null,null,null,null,"A01499999","表最終行"]
[null,"備考",null,null,null,null,null,null,null,null,null,null,null,null,null,null,null,null,null,"A01899997"]
[null,null,null,null,null,null,null,null,null,null,null,null,null,null,null,null,null,null,null,"A01899998","ページ備考欄",null,null,null,null,null,null,null,null,null,null,null,null,null,null,null,null,null,null,null,null,null,null,null,null,null,null,null,null,null,null,null,null,{"$f":"B31","v":0}]
[null,null,null,null,null,null,null,null,null,null,null,null,null,null,null,null,null,null,null,"A01600001"]
[null,"「② 就職者数」欄に記載の主な就職先",null,null,null,null,null,null,null,null,null,null,null,null,null,null,null,null,null,"A01600002"]
[null,"※ 海外の大学・機関である場合は、それが分かるように明示してください。",null,null,null,null,null,null,null,null,null,null,null,null,null,null,null,null,null,"A01600003"]
[null,null,null,null,null,null,null,null,null,null,null,null,null,null,null,null,null,null,null,"A01710001","コメントデータ先頭",null,null,null,null,null,null,null,null,null,null,null,null,null,null,null,null,null,null,null,null,null,null,null,null,null,null,null,null,null,null,null,null,{"$f":"B35","v":0}]
[null,null,null,null,null,null,null,null,null,null,null,null,null,null,null,null,null,null,null,"A01600004"]
[null,"「④ 一時的な仕事に就いた者」欄に記載の主な就職先",null,null,null,null,null,null,null,null,null,null,null,null,null,null,null,null,null,"A01600005"]
[null,null,null,null,null,null,null,null,null,null,null,null,null,null,null,null,null,null,null,"A01600006"]
[null,null,null,null,null,null,null,null,null,null,null,null,null,null,null,null,null,null,null,"A01720001","コメントデータ２番目",null,null,null,null,null,null,null,null,null,null,null,null,null,null,null,null,null,null,null,null,null,null,null,null,null,null,null,null,null,null,null,null,{"$f":"B39","v":0}]
[null,null,null,null,null,null,null,null,null,null,null,null,null,null,null,null,null,null,null,"A01600007"]
[null,"「⑤　死亡・不詳」欄の事情、理由",null,null,null,null,null,null,null,null,null,null,null,null,null,null,null,null,null,"A01600008"]
[null,"※ 進路を把握できない特別な事情がある場合は記載してください。",null,null,null,null,null,null,null,null,null,null,null,null,null,null,null,null,null,"A01600009"]
[null,null,null,null,null,null,null,null,null,null,null,null,null,null,null,null,null,null,null,"A01730001","コメントデータ３番目",null,null,null,null,null,null,null,null,null,null,null,null,null,null,null,null,null,null,null,null,null,null,null,null,null,null,null,null,null,null,null,null,{"$f":"B43","v":0}]
[null,null,null,null,null,null,null,null,null,null,null,null,null,null,null,null,null,null,null,"A01600010"]
[null,"「⑥ ①～⑤のいずれにも該当しない者」欄に記載の具体的な内訳",null,null,null,null,null,null,null,null,null,null,null,null,null,null,null,null,null,"A01600011"]
[null,null,null,null,null,null,null,null,null,null,null,null,null,null,null,null,null,null,null,"A01600012"]
[null,null,null,null,null,null,null,null,null,null,null,null,null,null,null,null,null,null,null,"A01740001","コメントデータ４番目",null,null,null,null,null,null,null,null,null,null,null,null,null,null,null,null,null,null,null,null,null,null,null,null,null,null,null,null,null,null,null,null,{"$f":"B47","v":0}]
[null,null,null,null,null,null,null,null,null,null,null,null,null,null,null,null,null,null,null,"A01600013"]
[null,null,null,null,null,null,null,null,null,null,null,null,null,null,null,null,null,null,null,"A01899999","ページ最後"]
[null,null,null,null,null,null,null,null,null,null,null,null,null,null,null,null,null,null,null,"A99999999","フォーマット最後"]

{"sheet":"様式３（５）","index":8,"n_rows":34,"n_cols":108,"rows_kept":34,"cut":false,"hidden":false,"merged":[[25,1,25,78],[23,1,23,78],[20,1,20,78],[29,1,29,78],[30,1,30,78],[18,71,18,72],[18,41,18,42],[18,49,18,51],[18,56,18,57],[18,62,18,64],[18,1,18,14],[18,15,18,18],[18,19,18,21],[18,26,18,27],[18,32,18,34],[5,1,5,78],[8,2,8,8],[8,9,8,78],[13,2,13,78],[17,1,17,14],[17,15,17,18],[17,19,17,31],[17,32,17,48],[17,49,17,61],[17,62,17,78]]}
[null,null,null,null,null,null,null,null,null,null,null,null,null,null,null,null,null,null,null,null,null,null,null,null,null,null,null,null,null,null,null,null,null,null,null,null,null,null,null,null,null,null,null,null,null,null,null,null,null,null,null,null,null,null,null,null,null,null,null,null,null,null,null,null,null,null,null,null,null,null,null,null,null,null,null,null,null,null,null,null,null,null,"エラーメッセージ用列"]
[null,null,null,null,null,null,null,null,null,null,null,null,null,null,null,null,null,null,null,null,null,null,null,null,null,null,null,null,null,null,null,null,null,null,null,null,null,null,null,null,null,null,null,null,null,null,null,null,null,null,null,null,null,null,null,null,null,null,null,null,null,null,null,null,null,null,null,null,null,null,null,null,null,null,null,null,null,null,null,null,null,null,null,null,null,null,null,null,null,null,null,null,null,1,"登録大学数"]
[null,null,null,null,null,null,null,null,null,null,null,null,null,null,null,null,null,null,null,null,null,null,null,null,null,null,null,null,null,null,null,null,null,null,null,null,null,null,null,null,null,null,null,null,null,null,null,null,null,null,null,null,null,null,null,null,null,null,null,null,null,null,null,null,null,null,null,null,null,null,null,null,null,null,null,null,null,null,"様式３",null,null,null,null,null,null,null,null,null,null,null,null,null,null,"A99999991","フォーマット先頭"]
[null,null,null,null,null,null,null,null,null,null,null,null,null,null,null,null,null,null,null,null,null,null,null,null,null,null,null,null,null,null,null,null,null,null,null,null,null,null,null,null,null,null,null,null,null,null,null,null,null,null,null,null,null,null,null,null,null,null,null,null,null,null,null,null,null,null,null,null,null,null,null,null,null,null,null,null,null,null,null,null,null,null,null,null,null,null,null,null,null,null,null,null,null,"A00999992"]
[null,"（５）学生の研究活動の状況",null,null,null,null,null,null,null,null,null,null,null,null,null,null,null,null,null,null,null,null,null,null,null,null,null,null,null,null,null,null,null,null,null,null,null,null,null,null,null,null,null,null,null,null,null,null,null,null,null,null,null,null,null,null,null,null,null,null,null,null,null,null,null,null,null,null,null,null,null,null,null,null,null,null,null,null,null,null,null,null,null,null,null,null,null,null,null,null,null,null,null,"A01800001","ページ先頭"]
[null,"以下の①～③は「プログラムの基本情報」（様式１）の「８．学生の所属する専攻等名」に記載した専攻等に係るデータを集計の上、記入してください。大学ごとにページを複製して作成してください。",null,null,null,null,null,null,null,null,null,null,null,null,null,null,null,null,null,null,null,null,null,null,null,null,null,null,null,null,null,null,null,null,null,null,null,null,null,null,null,null,null,null,null,null,null,null,null,null,null,null,null,null,null,null,null,null,null,null,null,null,null,null,null,null,null,null,null,null,null,null,null,null,null,null,null,null,null,null,null,null,null,null,null,null,null,null,null,null,null,null,null,"A01800002"]
[null,null,null,null,null,null,null,null,null,null,null,null,null,null,null,null,null,null,null,null,null,null,null,null,null,null,null,null,null,null,null,null,null,null,null,null,null,null,null,null,null,null,null,null,null,null,null,null,null,null,null,null,null,null,null,null,null,null,null,null,null,null,null,null,null,null,null,null,null,null,null,null,null,null,null,null,null,null,null,null,null,null,null,null,null,null,null,null,null,null,null,null,null,"A01800003"]
[null,null,null,null,null,null,null,null,null,null,null,null,null,null,null,null,null,null,null,null,null,null,null,null,null,null,null,null,null,null,null,null,null,null,null,null,null,null,null,null,null,null,null,null,null,null,null,null,null,null,null,null,null,null,null,null,null,null,null,null,null,null,null,null,null,null,null,null,null,null,null,null,null,null,null,null,null,null,null,null,null,null,null,null,null,null,null,null,null,null,null,null,null,"A01800004"]
[null,null,"大学名：　",null,null,null,null,null,null,null,null,null,null,null,null,null,null,null,null,null,null,null,null,null,null,null,null,null,null,null,null,null,null,null,null,null,null,null,null,null,null,null,null,null,null,null,null,null,null,null,null,null,null,null,null,null,null,null,null,null,null,null,null,null,null,null,null,null,null,null,null,null,null,null,null,null,null,null,null,null,null,null,null,null,null,null,null,null,null,null,null,null,null,"A01800005","大学名欄"]
[null,null,null,null,null,null,null,null,null,null,null,null,null,null,null,null,null,null,null,null,null,null,null,null,null,null,null,null,null,null,null,null,null,null,null,null,null,null,null,null,null,null,null,null,null,null,null,null,null,null,null,null,null,null,null,null,null,null,null,null,null,null,null,null,null,null,null,null,null,null,null,null,null,null,null,null,null,null,null,null,null,null,null,null,null,null,null,null,null,null,null,null,null,"A01800006"]
[null,"①博士課程学生の学会発表、学術雑誌等への論文等発表数",null,null,null,null,null,null,null,null,null,null,null,null,null,null,null,null,null,null,null,null,null,null,null,null,null,null,null,null,null,null,null,null,null,null,null,null,null,null,null,null,null,null,null,null,null,null,null,null,null,null,null,null,null,null,null,null,null,null,null,null,null,null,null,null,null,null,null,null,null,null,null,null,null,null,null,null,null,null,null,null,null,null,null,null,null,null,null,null,null,null,null,"A01800007"]
[null,null,"注１：平成３０年度（３０年（２０１８年）４月～３１年（２０１９年）３月の期間）について作成してください。",null,null,null,null,null,null,null,null,null,null,null,null,null,null,null,null,null,null,null,null,null,null,null,null,null,null,null,null,null,null,null,null,null,null,null,null,null,null,null,null,null,null,null,null,null,null,null,null,null,null,null,null,null,null,null,null,null,null,null,null,null,null,null,null,null,null,null,null,null,null,null,null,null,null,null,null,null,null,null,null,null,null,null,null,null,null,null,null,null,null,"A01800008"]
[null,null,"注２：学会発表数の（　）内にはうち国外かつ外国語で行われたものを記入してください。",null,null,null,null,null,null,null,null,null,null,null,null,null,null,null,null,null,null,null,null,null,null,null,null,null,null,null,null,null,null,null,null,null,null,null,null,null,null,null,null,null,null,null,null,null,null,null,null,null,null,null,null,null,null,null,null,null,null,null,null,null,null,null,null,null,null,null,null,null,null,null,null,null,null,null,null,null,null,null,null,null,null,null,null,null,null,null,null,null,null,"A01800009"]
[null,null,"注３：論文発表数は、専攻に所属する学生がレフェリー付学術雑誌に代表又はファーストオーサーとして（印刷済又は採録決定済のものに限り、査読中・投稿中のものは除く。）発表した論文数を記入してください。また、論文発表数の（）内には、うち外国語で作成した論文数を記入してください。",null,null,null,null,null,null,null,null,null,null,null,null,null,null,null,null,null,null,null,null,null,null,null,null,null,null,null,null,null,null,null,null,null,null,null,null,null,null,null,null,null,null,null,null,null,null,null,null,null,null,null,null,null,null,null,null,null,null,null,null,null,null,null,null,null,null,null,null,null,null,null,null,null,null,null,null,null,null,null,null,null,null,null,null,null,null,null,null,null,null,"A01800010"]
[null,null,"注４：（２）経済的支援の現状の課程区分ごとの在籍者数合計との整合性に注意してください。",null,null,null,null,null,null,null,null,null,null,null,null,null,null,null,null,null,null,null,null,null,null,null,null,null,null,null,null,null,null,null,null,null,null,null,null,null,null,null,null,null,null,null,null,null,null,null,null,null,null,null,null,null,null,null,null,null,null,null,null,null,null,null,null,null,null,null,null,null,null,null,null,null,null,null,null,null,null,null,null,null,null,null,null,null,null,null,null,null,null,"A01800011"]
[null,null,null,null,null,null,null,null,null,null,null,null,null,null,null,null,null,null,null,null,null,null,null,null,null,null,null,null,null,null,null,null,null,null,null,null,null,null,null,null,null,null,null,null,null,null,null,null,null,null,null,null,null,null,null,null,null,null,null,null,null,null,null,null,null,null,null,null,null,null,null,null,null,null,null,null,null,null,null,null,null,null,null,null,null,null,null,null,null,null,null,null,null,"A01800012"]
[null,1,null,null,null,null,null,null,null,null,null,null,null,null,null,null,null,null,null,null,null,null,null,null,null,null,null,null,null,null,null,null,null,null,null,null,null,null,null,null,null,null,null,null,null,null,null,null,null,null,null,null,null,null,null,null,null,null,null,null,null,null,null,null,null,null,null,null,null,null,null,null,null,null,null,null,null,null,null,null,null,null,null,null,null,null,null,null,null,null,null,null,null,"A01800013"]
[null,"課程区分",null,null,null,null,null,null,null,null,null,null,null,null,null,"在籍者数",null,null,null,"学会発表数",null,null,null,null,null,null,null,null,null,null,null,null,"在籍者に対する\n割合",null,null,null,null,null,null,null,null,null,null,null,null,null,null,null,null,"レフェリー付き\n論文発表数",null,null,null,null,null,null,null,null,null,null,null,null,"在籍者に対する\n割合",null,null,null,null,null,null,null,null,null,null,null,null,null,null,null,null,null,null,null,null,null,null,null,null,null,null,null,null,null,null,"A01800014"]
[null,null,null,null,null,null,null,null,null,null,null,null,null,null,null,null,null,null,null,null,null,null,"回",null,"（",null,null,null,"回",null,"）",null,null,null,null,"回／人",null,null,null,"（",null,null,null,"回／人",null,null,null,"）",null,null,null,null,"件",null,"（",null,null,null,"件",null,"）",null,null,null,null,"件／人",null,null,null,"（",null,null,null,"件／人",null,null,null,"）",null,null,null,null,null,null,null,null,null,null,null,null,null,null,null,"A01500001","データ先頭"]
[null,"備考",null,null,null,null,null,null,null,null,null,null,null,null,null,null,null,null,null,null,null,null,null,null,null,null,null,null,null,null,null,null,null,null,null,null,null,null,null,null,null,null,null,null,null,null,null,null,null,null,null,null,null,null,null,null,null,null,null,null,null,null,null,null,null,null,null,null,null,null,null,null,null,null,null,null,null,null,null,null,null,null,null,null,null,null,null,null,null,null,null,null,null,"A01599999","データ最後"]
[null,null,null,null,null,null,null,null,null,null,null,null,null,null,null,null,null,null,null,null,null,null,null,null,null,null,null,null,null,null,null,null,null,null,null,null,null,null,null,null,null,null,null,null,null,null,null,null,null,null,null,null,null,null,null,null,null,null,null,null,null,null,null,null,null,null,null,null,null,null,null,null,null,null,null,null,null,null,null,null,null,null,null,null,null,null,null,null,null,null,null,null,null,"A01899998","ページ備考欄",null,null,null,null,null,null,null,null,null,null,null,null,{"$f":"B21","v":0}]
[null,null,null,null,null,null,null,null,null,null,null,null,null,null,null,null,null,null,null,null,null,null,null,null,null,null,null,null,null,null,null,null,null,null,null,null,null,null,null,null,null,null,null,null,null,null,null,null,null,null,null,null,null,null,null,null,null,null,null,null,null,null,null,null,null,null,null,null,null,null,null,null,null,null,null,null,null,null,null,null,null,null,null,null,null,null,null,null,null,null,null,null,null,"A01400001"]
[null,"②博士課程学生の主な発表論文",null,null,null,null,null,null,null,null,null,null,null,null,null,null,null,null,null,null,null,null,null,null,null,null,null,null,null,null,null,null,null,null,null,null,null,null,null,null,null,null,null,null,null,null,null,null,null,null,null,null,null,null,null,null,null,null,null,null,null,null,null,null,null,null,null,null,null,null,null,null,null,null,null,null,null,null,null,null,null,null,null,null,null,null,null,null,null,null,null,null,null,"A01400002"]
[null,"（平成２８～３０年度（２８年（２０１６年）４月～３１年（２０１９年）３月の期間）における、専攻に所属する学生の主な発表論文（論文名、著者名、学会誌名、巻（号）、最初と最後の頁、発表年（西暦）の各項目を必ず記入）を記入してください。ただし、印刷済又は採録決定済のものに限り、査読中・投稿中のものは除きます。）",null,null,null,null,null,null,null,null,null,null,null,null,null,null,null,null,null,null,null,null,null,null,null,null,null,null,null,null,null,null,null,null,null,null,null,null,null,null,null,null,null,null,null,null,null,null,null,null,null,null,null,null,null,null,null,null,null,null,null,null,null,null,null,null,null,null,null,null,null,null,null,null,null,null,null,null,null,null,null,null,null,null,null,null,null,null,null,null,null,null,null,"A01400003"]
[null,3,null,null,null,null,null,null,null,null,null,null,null,null,null,null,null,null,null,null,null,null,null,null,null,null,null,null,null,null,null,null,null,null,null,null,null,null,null,null,null,null,null,null,null,null,null,null,null,null,null,null,null,null,null,null,null,null,null,null,null,null,null,null,null,null,null,null,null,null,null,null,null,null,null,null,null,null,null,null,null,null,null,null,null,null,null,null,null,null,null,null,null,"A01400004"]
[null,null,null,null,null,null,null,null,null,null,null,null,null,null,null,null,null,null,null,null,null,null,null,null,null,null,null,null,null,null,null,null,null,null,null,null,null,null,null,null,null,null,null,null,null,null,null,null,null,null,null,null,null,null,null,null,null,null,null,null,null,null,null,null,null,null,null,null,null,null,null,null,null,null,null,null,null,null,null,null,null,null,null,null,null,null,null,null,null,null,null,null,null,"A01610001","発表論文先頭",null,null,null,null,null,null,null,null,null,null,null,null,{"$f":"B26","v":0}]
[null,3,null,null,null,null,null,null,null,null,null,null,null,null,null,null,null,null,null,null,null,null,null,null,null,null,null,null,null,null,null,null,null,null,null,null,null,null,null,null,null,null,null,null,null,null,null,null,null,null,null,null,null,null,null,null,null,null,null,null,null,null,null,null,null,null,null,null,null,null,null,null,null,null,null,null,null,null,null,null,null,null,null,null,null,null,null,null,null,null,null,null,null,"A01610999","発表論文最後"]
[null,4,null,null,null,null,null,null,null,null,null,null,null,null,null,null,null,null,null,null,null,null,null,null,null,null,null,null,null,null,null,null,null,null,null,null,null,null,null,null,null,null,null,null,null,null,null,null,null,null,null,null,null,null,null,null,null,null,null,null,null,null,null,null,null,null,null,null,null,null,null,null,null,null,null,null,null,null,null,null,null,null,null,null,null,null,null,null,null,null,null,null,null,"A01A01A01"]
[null,"③研究費の獲得状況及び学会賞等各賞の受賞状況等",null,null,null,null,null,null,null,null,null,null,null,null,null,null,null,null,null,null,null,null,null,null,null,null,null,null,null,null,null,null,null,null,null,null,null,null,null,null,null,null,null,null,null,null,null,null,null,null,null,null,null,null,null,null,null,null,null,null,null,null,null,null,null,null,null,null,null,null,null,null,null,null,null,null,null,null,null,null,null,null,null,null,null,null,null,null,null,null,null,null,null,"A01710001","コメントデータ先頭行"]
[null,"（平成２８～３０年度（２８年（２０１６年）４月～３１年（２０１９年）３月の期間）における、専攻に所属する学生が獲得した主な研究費（名称、期間、金額等）の獲得状況及び学会賞等（受賞名、受賞年等）の受賞状況について記入してください。また、当該専攻に所属する学生が在籍中に取得した特許や記載された新聞記事など、大学で特筆すべき研究成果と判断されるものがあれば、本欄に記入することが可能です。）",null,null,null,null,null,null,null,null,null,null,null,null,null,null,null,null,null,null,null,null,null,null,null,null,null,null,null,null,null,null,null,null,null,null,null,null,null,null,null,null,null,null,null,null,null,null,null,null,null,null,null,null,null,null,null,null,null,null,null,null,null,null,null,null,null,null,null,null,null,null,null,null,null,null,null,null,null,null,null,null,null,null,null,null,null,null,null,null,null,null,null,"A01710002"]
[null,null,null,null,null,null,null,null,null,null,null,null,null,null,null,null,null,null,null,null,null,null,null,null,null,null,null,null,null,null,null,null,null,null,null,null,null,null,null,null,null,null,null,null,null,null,null,null,null,null,null,null,null,null,null,null,null,null,null,null,null,null,null,null,null,null,null,null,null,null,null,null,null,null,null,null,null,null,null,null,null,null,null,null,null,null,null,null,null,null,null,null,null,"A01710003",null,null,null,null,null,null,null,null,null,null,null,null,null,{"$f":"B31","v":0}]
[null,null,null,null,null,null,null,null,null,null,null,null,null,null,null,null,null,null,null,null,null,null,null,null,null,null,null,null,null,null,null,null,null,null,null,null,null,null,null,null,null,null,null,null,null,null,null,null,null,null,null,null,null,null,null,null,null,null,null,null,null,null,null,null,null,null,null,null,null,null,null,null,null,null,null,null,null,null,null,null,null,null,null,null,null,null,null,null,null,null,null,null,null,"A01710004"]
[null,null,null,null,null,null,null,null,null,null,null,null,null,null,null,null,null,null,null,null,null,null,null,null,null,null,null,null,null,null,null,null,null,null,null,null,null,null,null,null,null,null,null,null,null,null,null,null,null,null,null,null,null,null,null,null,null,null,null,null,null,null,null,null,null,null,null,null,null,null,null,null,null,null,null,null,null,null,null,null,null,null,null,null,null,null,null,null,null,null,null,null,null,"A01899999","ページ最後"]
[null,null,null,null,null,null,null,null,null,null,null,null,null,null,null,null,null,null,null,null,null,null,null,null,null,null,null,null,null,null,null,null,null,null,null,null,null,null,null,null,null,null,null,null,null,null,null,null,null,null,null,null,null,null,null,null,null,null,null,null,null,null,null,null,null,null,null,null,null,null,null,null,null,null,null,null,null,null,null,null,null,null,null,null,null,null,null,null,null,null,null,null,null,"A99999999","フォーマット最後"]

{"sheet":"様式３（６）","index":9,"n_rows":21,"n_cols":54,"rows_kept":21,"cut":false,"hidden":false,"merged":[[18,2,18,3],[5,1,5,4],[11,2,11,3],[14,2,14,3],[15,2,15,3],[17,2,17,3]]}
[null,null,null,null,null,null,null,null,"エラーメッセージ用列"]
[null,null,null,null,null,null,null,null,null,null,null,null,null,null,null,null,null,null,null,1,"登録大学数"]
[null,null,null,null,"様式３",null,null,null,null,null,null,null,null,null,null,null,null,null,null,"A99999991","フォーマット先頭"]
[null,null,null,null,null,null,null,null,null,null,null,null,null,null,null,null,null,null,null,"A99999992"]
[null,"（６）申請大学の教育研究実績・環境等（特に国際的な実績）",null,null,null,null,null,null,null,null,null,null,null,null,null,null,null,null,null,"A01800001","ページ先頭"]
[null,"※単に採択実績を示すだけではなく、大学がどのような教育研究上の国際競争力を持つかや、過去の事業等が大学の努力によりどのように補助期間終了後も継続され本申請に生かされているか、という観点で記載してください。共同申請を行う場合には、大学ごとにページを複製して作成してください。",null,null,null,null,null,null,null,null,null,null,null,null,null,null,null,null,null,"A01800002"]
[null,null,null,null,null,null,null,null,null,null,null,null,null,null,null,null,null,null,null,"A01800003"]
[null,null,null,null,null,null,null,null,null,null,null,null,null,null,null,null,null,null,null,"A01800004"]
[null,null,"大学名：　",null,null,null,null,null,null,null,null,null,null,null,null,null,null,null,null,"A01800005","大学名欄"]
[null,null,null,null,null,null,null,null,null,null,null,null,null,null,null,null,null,null,null,"A01800006"]
[null,"①教育活動の実績（申請大学の特筆すべき教育実績等）",null,null,null,null,null,null,null,null,null,null,null,null,null,null,null,null,null,"A01500001","データ先頭"]
[null,null,null,null,null,null,null,null,null,null,null,null,null,null,null,null,null,null,null,"A01500002",null,null,null,null,null,null,null,null,null,null,null,null,null,null,null,null,null,null,null,null,null,null,null,null,null,null,null,null,null,null,null,null,null,{"$f":"C12","v":0}]
[null,null,null,null,null,null,null,null,null,null,null,null,null,null,null,null,null,null,null,"A01500003"]
[null,"②研究活動の実績（申請大学の特筆すべき研究実績等）",null,null,null,null,null,null,null,null,null,null,null,null,null,null,null,null,null,"A01500004","データ２番目"]
[null,null,null,null,null,null,null,null,null,null,null,null,null,null,null,null,null,null,null,"A01500005",null,null,null,null,null,null,null,null,null,null,null,null,null,null,null,null,null,null,null,null,null,null,null,null,null,null,null,null,null,null,null,null,null,{"$f":"C15","v":0}]
[null,null,null,null,null,null,null,null,null,null,null,null,null,null,null,null,null,null,null,"A01500006"]
[null,"③産官学等連携の実績（申請大学の特筆すべき連携実績等）",null,null,null,null,null,null,null,null,null,null,null,null,null,null,null,null,null,"A01500007","データ３番目"]
[null,null,null,null,null,null,null,null,null,null,null,null,null,null,null,null,null,null,null,"A01500008",null,null,null,null,null,null,null,null,null,null,null,null,null,null,null,null,null,null,null,null,null,null,null,null,null,null,null,null,null,null,null,null,null,{"$f":"C18","v":0}]
[null,null,null,null,null,null,null,null,null,null,null,null,null,null,null,null,null,null,null,"A01500009"]
[null,null,null,null,null,null,null,null,null,null,null,null,null,null,null,null,null,null,null,"A01899999","ページ最後"]
[null,null,null,null,null,null,null,null,null,null,null,null,null,null,null,null,null,null,null,"A99999999","フォーマット最後"]

{"sheet":"様式３（７）","index":10,"n_rows":18,"n_cols":54,"rows_kept":18,"cut":false,"hidden":false,"merged":[[5,1,5,4],[8,2,8,3],[11,2,11,3],[14,2,14,3]]}
[null,null,null,null,null,null,null,null,"エラーメッセージ用列"]
[null,null,null,null,null,null,null,null,null,null,null,null,null,null,null,null,null,null,null,1,"登録大学数"]
[null,null,null,null,"様式３",null,null,null,null,null,null,null,null,null,null,null,null,null,null,"A99999991","フォーマット先頭"]
[null,null,null,null,null,null,null,null,null,null,null,null,null,null,null,null,null,null,null,"A99999992"]
[null,"（７）連携先機関の教育研究実績・環境等",null,null,null,null,null,null,null,null,null,null,null,null,null,null,null,null,null,"A01800001","ページ先頭"]
[null,"※連携先機関の教育研究実績・環境等をどのように本申請に活用するかという観点で記載してください。",null,null,null,null,null,null,null,null,null,null,null,null,null,null,null,null,null,"A01800002"]
[null,null,null,null,null,null,null,null,null,null,null,null,null,null,null,null,null,null,null,"A01800003"]
[null,"①教育活動の実績（連携先機関の特筆すべき教育実績等）",null,null,null,null,null,null,null,null,null,null,null,null,null,null,null,null,null,"A01500001","データ先頭"]
[null,null,null,null,null,null,null,null,null,null,null,null,null,null,null,null,null,null,null,"A01500002",null,null,null,null,null,null,null,null,null,null,null,null,null,null,null,null,null,null,null,null,null,null,null,null,null,null,null,null,null,null,null,null,null,{"$f":"C9","v":0}]
[null,null,null,null,null,null,null,null,null,null,null,null,null,null,null,null,null,null,null,"A01500003"]
[null,"②研究活動の実績（連携先機関の特筆すべき研究実績等）",null,null,null,null,null,null,null,null,null,null,null,null,null,null,null,null,null,"A01500004"]
[null,null,null,null,null,null,null,null,null,null,null,null,null,null,null,null,null,null,null,"A01500005","データ２番目",null,null,null,null,null,null,null,null,null,null,null,null,null,null,null,null,null,null,null,null,null,null,null,null,null,null,null,null,null,null,null,null,{"$f":"C12","v":0}]
[null,null,null,null,null,null,null,null,null,null,null,null,null,null,null,null,null,null,null,"A01500006"]
[null,"③産官学等連携の実績（連携先機関の特筆すべき連携実績等）",null,null,null,null,null,null,null,null,null,null,null,null,null,null,null,null,null,"A01500007"]
[null,null,null,null,null,null,null,null,null,null,null,null,null,null,null,null,null,null,null,"A01500008","データ３番目",null,null,null,null,null,null,null,null,null,null,null,null,null,null,null,null,null,null,null,null,null,null,null,null,null,null,null,null,null,null,null,null,{"$f":"C15","v":0}]
[null,null,null,null,null,null,null,null,null,null,null,null,null,null,null,null,null,null,null,"A01500009"]
[null,null,null,null,null,null,null,null,null,null,null,null,null,null,null,null,null,null,null,"A01899999","ページ最後"]
[null,null,null,null,null,null,null,null,null,null,null,null,null,null,null,null,null,null,null,"A99999999","フォーマット最後"]

{"sheet":"様式３（８）-①","index":11,"n_rows":21,"n_cols":54,"rows_kept":21,"cut":false,"hidden":false,"merged":[[18,1,18,8],[15,1,15,3],[6,1,6,8],[7,1,7,8],[10,1,10,9],[11,3,11,8],[14,1,14,3],[9,1,9,8],[8,1,8,8]]}
[null,null,null,null,null,null,null,null,null,null,null,null,"エラーメッセージ用列"]
[null,null,null,null,null,null,null,null,null,null,null,null,null,null,null,null,null,null,null,1,"登録大学数"]
[null,null,null,null,null,null,null,null,"様式３",null,null,null,null,null,null,null,null,null,null,"A99999991","フォーマット先頭"]
[null,null,null,null,null,null,null,null,null,null,null,null,null,null,null,null,null,null,null,"A99999992"]
[null,"（８）他事業の実施状況",null,null,null,null,null,null,null,null,null,null,null,null,null,null,null,null,null,"A01800001","ページ先頭"]
[null,"①　他事業の実施状況",null,null,null,null,null,null,null,null,null,null,null,null,null,null,null,null,null,"A01800002"]
[null,"　①本申請にその成果を生かすことができると考えられる他の事業（過去の事業・現在実施中の事業を含む）がある場合、主なものについてその評価を①に記入してください。大学ごと（申請大学、共同申請の場合構成大学、連携先機関に記載の国内の大学）にページを複製して作成してください。",null,null,null,null,null,null,null,null,null,null,null,null,null,null,null,null,null,"A01800003"]
[null,"※上記に関わらず、「博士課程教育リーディングプログラム」に採択されているプログラム（補助期間が終了している場合を含む）がある場合は必ず記入してください。",null,null,null,null,null,null,null,null,null,null,null,null,null,null,null,null,null,"A01800003"]
[null,"※プログラム名欄には、各事業において使用されている「構想名」「プログラム名称」「取組名」等、該当する事業を識別できる名称を記入してください。なお、プログラム名に相当するものがない場合は、「大学名」を記入してください。",null,null,null,null,null,null,null,null,null,null,null,null,null,null,null,null,null,"A01800003"]
[null,"※評価が未実施の場合には、該当する欄に「未実施」と記入してください。",null,null,null,null,null,null,null,null,null,null,null,null,null,null,null,null,null,"A01800003"]
[null,null,null,null,null,null,null,null,null,null,null,null,null,null,null,null,null,null,null,"A01800003"]
[null,null,"大学名：",null,null,null,null,null,null,null,null,null,null,null,null,null,null,null,null,"A01800005","大学名欄"]
[null,null,null,null,null,null,null,null,null,null,null,null,null,null,null,null,null,null,null,"A01800006"]
[null,null,null,null,null,null,null,null,null,null,null,null,null,null,null,null,null,null,null,"A01800007"]
[null,"事業名",null,null,"プログラム名","申請校","連携校\n・連携\n先機関","中間評価\n結果","事後評価\n結果",null,null,null,null,null,null,null,null,null,null,"A01800008"]
[null,null,null,null,null,null,null,null,null,null,null,null,null,null,null,null,null,null,null,"A01500001","データ先頭"]
[null,null,null,null,null,null,null,null,"※適宜行を追加・削除してください。",null,null,null,null,null,null,null,null,null,null,"A01599999","データ最終行"]
[null,"備考",null,null,null,null,null,null,null,null,null,null,null,null,null,null,null,null,null,"A01899997"]
[null,null,null,null,null,null,null,null,null,null,null,null,null,null,null,null,null,null,null,"A01899998","ページ備考欄",null,null,null,null,null,null,null,null,null,null,null,null,null,null,null,null,null,null,null,null,null,null,null,null,null,null,null,null,null,null,null,null,{"$f":"B19","v":0}]
[null,null,null,null,null,null,null,null,null,null,null,null,null,null,null,null,null,null,null,"A01899999","ページ最後"]
[null,null,null,null,null,null,null,null,null,null,null,null,null,null,null,null,null,null,null,"A99999999","フォーマット最後"]

{"sheet":"様式３（８）-②","index":12,"n_rows":21,"n_cols":54,"rows_kept":21,"cut":false,"hidden":false,"merged":[[18,2,18,16],[19,2,19,16],[12,1,16,3],[12,4,16,4],[13,5,13,16],[14,5,14,16],[15,5,15,16],[16,5,16,16],[6,1,6,16],[8,3,8,16],[10,1,11,3],[10,4,11,4],[10,5,10,16],[11,5,11,8],[11,9,11,12],[11,13,11,16]]}
[null,null,null,null,null,null,null,null,null,null,null,null,null,null,null,null,null,null,null,null,"エラーメッセージ用列"]
[null,null,null,null,null,null,null,null,null,null,null,null,null,null,null,null,null,null,null,null,null,null,null,null,null,null,null,1,"登録大学数"]
[null,null,null,null,null,null,null,null,null,null,null,null,null,null,null,null,"様式３",null,null,null,null,null,null,null,null,null,null,"A99999991","フォーマット先頭"]
[null,null,null,null,null,null,null,null,null,null,null,null,null,null,null,null,null,null,null,null,null,null,null,null,null,null,null,9999992]
[null,null,null,null,null,null,null,null,null,null,null,null,null,null,null,null,null,null,null,null,null,null,null,null,null,null,null,"A01800001","ページ先頭"]
[null,"②　「博士課程教育リーディングプログラム」における取組の継続状況",null,null,null,null,null,null,null,null,null,null,null,null,null,null,null,null,null,null,null,null,null,null,null,null,null,"A01800002"]
[null,"　②「博士課程教育リーディングプログラム」に採択されており、かつ、補助期間が終了しているプログラムがある場合には、①に加えて、同事業の補助期間終了後における取組の継続状況を１プログラムにつき１ページ以内で記入してください。大学ごと（申請大学、共同申請の場合構成大学、連携先機関に記載の国内の大学）にページを複製して作成してください。\n※入学者数・在籍者数・プログラム担当教員数は令和元年度の実数を記入するとともに、（）内に補助期間の最終年度の実数を記入して下さい。",null,null,null,null,null,null,null,null,null,null,null,null,null,null,null,null,null,null,null,null,null,null,null,null,null,"A01800003"]
[null,null,null,null,null,null,null,null,null,null,null,null,null,null,null,null,null,null,null,null,null,null,null,null,null,null,null,"A01800004"]
[null,null,"大学名：",null,null,null,null,null,null,null,null,null,null,null,null,null,null,null,null,null,null,null,null,null,null,null,null,"A01800005","大学名欄"]
[null,null,null,null,null,null,null,null,null,null,null,null,null,null,null,null,null,null,null,null,null,null,null,null,null,null,null,"A01800006"]
[null,"プログラム名",null,null,"補助期間\n終了年度\n(最終年度)","令和元年度の状況（最終年度の状況）",null,null,null,null,null,null,null,null,null,null,null,null,null,null,null,null,null,null,null,null,null,"A01800007"]
[null,null,null,null,null,"入学者数",null,null,null,"在籍者数",null,null,null,"プログラム\n担当教員数",null,null,null,null,null,null,null,null,null,null,null,null,null,"A01800008"]
[null,null,null,null,null,null,"(",null,")",null,"(",null,")",null,"(",null,")",null,null,null,null,null,null,null,null,null,null,"A01500001","データ先頭"]
[null,null,null,null,null,"継続状況の説明",null,null,null,null,null,null,null,null,null,null,null,null,null,null,null,null,null,null,null,null,null,"A01500002"]
[null,null,null,null,null,null,null,null,null,null,null,null,null,null,null,null,null,null,null,null,null,null,null,null,null,null,null,"A01500003",null,null,null,null,null,null,null,null,null,null,null,null,null,null,null,null,null,null,null,null,null,null,null,null,null,{"$f":"F15","v":0}]
[null,null,null,null,null,"事業内容の最終年度からの主な変更点\n（実施運営の体制など）",null,null,null,null,null,null,null,null,null,null,null,null,null,null,null,null,null,null,null,null,null,"A01500004"]
[null,null,null,null,null,null,null,null,null,null,null,null,null,null,null,null,null,null,null,null,null,null,null,null,null,null,null,"A01500005",null,null,null,null,null,null,null,null,null,null,null,null,null,null,null,null,null,null,null,null,null,null,null,null,null,{"$f":"F17","v":0}]
[null,null,null,null,null,null,null,null,null,null,null,null,null,null,null,null,null,null,null,null,null,null,null,null,null,null,null,"A01599999","データ最終行"]
[null,null,null,null,null,null,null,null,null,null,null,null,null,null,null,null,null,null,null,null,null,null,null,null,null,null,null,"A01700001"]
[null,null,null,null,null,null,null,null,null,null,null,null,null,null,null,null,null,null,null,null,null,null,null,null,null,null,null,"A01899999","ページ最後"]
[null,null,null,null,null,null,null,null,null,null,null,null,null,null,null,null,null,null,null,null,null,null,null,null,null,null,null,"A99999999","フォーマット最後"]

{"sheet":"課程区分","index":13,"n_rows":7,"n_cols":2,"rows_kept":7,"cut":false,"hidden":true,"merged":[]}
[]
[1,"修士課程"]
[2,"博士課程前期"]
[3,"博士課程後期"]
[4,"博士課程(一貫制)"]
[5,"博士課程(４年制)"]
[6,"専門職学位課程"]